bitfinex/quotes_ETHUSD_20251021
["timestamp","ask_amount","ask_price","bid_price","bid_amount"]
[1761005067890,29.99532114,3979.3,3979.2,1.45809818]
[1761005068070,29.09484029,3979.3,3979.2,1.45809818]
[1761005068864,32.36663329,3979.3,3979.2,1.45809818]
[1761005069260,31.85975329,3979.3,3979.2,1.45809818]
[1761005069572,3.194,3979.3,3979.2,1.90959818]
[1761005069780,2.98179387,3980.7,3979.2,1.90959818]
[1761005069781,32.51218409,3980.6,3979.2,4.42260476]
[1761005069963,19.351937,3980.5,3979.3,0.91594048]
[1761005070162,1.728,3980.1,3979.3,0.91594048]
[1761005070381,11.373608,3979.9,3979.4,0.4515]
[1761005070690,3.196,3980.0,3979.5,0.01264987]
[1761005070894,14.369195,3980.5,3979.9,0.2165]
[1761005071097,12.034598,3980.2,3979.9,0.2165]
[1761005071295,11.800287,3980.2,3980.0,0.439]
[1761005071463,11.695137,3980.2,3980.1,0.2165]
[1761005071793,4.191355,3980.2,3980.1,0.2165]
[1761005071962,3.196,3980.3,3980.1,0.6555]
[1761005072159,3.196,3980.6,3980.1,0.6555]
[1761005072389,5.000254,3980.5,3980.2,0.45163882]
[1761005072593,5.000254,3980.5,3980.2,0.439]
[1761005072898,1.8536,3980.3,3980.2,0.77745448]
[1761005073100,0.1256,3980.3,3980.2,0.77745448]
[1761005073403,0.1256,3980.3,3980.2,0.73568348]
[1761005073703,11.578179,3980.3,3980.2,0.397229]
[1761005073885,15.10888,3980.2,3980.1,0.2165]
[1761005074064,13.648781,3980.2,3980.1,0.2165]
[1761005074600,13.648781,3980.2,3979.9,0.2165]
[1761005074787,13.324544,3980.0,3979.9,0.2165]
[1761005075194,14.255058,3980.0,3979.9,0.2165]
[1761005075400,14.255058,3980.0,3979.9,0.6555]
[1761005076000,12.118231,3980.0,3979.9,0.6555]
[1761005076200,7.892449,3980.0,3979.9,0.6555]
[1761005076904,15.30258,3980.2,3979.9,0.6555]
[1761005077085,12.230789,3980.2,3979.9,0.6555]
[1761005077414,11.063563,3980.1,3979.9,0.6555]
[1761005077716,8.278651,3980.1,3980.0,0.439]
[1761005077915,1.728,3980.2,3980.0,0.439]
[1761005078211,8.354113,3980.2,3980.1,0.2165]
[1761005078744,0.001,3981.7,3980.1,0.66814166]
[1761005078915,0.1256,3980.3,3980.2,0.439]
[1761005079297,0.1256,3980.3,3980.2,0.77745491]
[1761005079479,0.1256,3980.3,3980.2,0.439]
[1761005081513,0.1256,3980.3,3980.1,0.2165]
[1761005081716,0.1256,3980.3,3980.2,0.439]
[1761005081912,1.728,3980.4,3980.2,0.439]
[1761005082122,1.77178823,3980.6,3980.2,0.439]
[1761005082316,0.04378823,3980.6,3980.2,0.439]
[1761005082545,1.77178823,3980.6,3980.2,0.439]
[1761005082691,0.04378823,3980.6,3980.3,0.01263787]
[1761005082891,0.04378823,3980.6,3980.4,2.51226661]
[1761005083108,1.728,3981.0,3980.5,2.52487757]
[1761005083397,2.480832,3980.9,3980.6,0.439]
[1761005083592,1.728,3981.0,3980.6,0.439]
[1761005083923,0.04378251,3981.1,3980.6,2.96380734]
[1761005084097,0.04378251,3981.1,3980.6,0.439]
[1761005084296,0.04378251,3981.1,3980.7,0.439]
[1761005084728,0.04378251,3981.1,3980.8,0.01262998]
[1761005085106,0.04378251,3981.1,3980.9,0.439]
[1761005086197,24.389463,3981.0,3980.9,0.439]
[1761005086392,21.805176,3981.0,3980.9,0.439]
[1761005086814,10.274399,3981.0,3980.9,0.439]
[1761005087122,1.728,3981.0,3980.9,0.439]
[1761005087512,6.260921,3981.0,3980.9,0.439]
[1761005087822,5.733166,3981.0,3980.9,0.439]
[1761005089230,3.992554,3981.0,3980.9,0.439]
[1761005089442,1.728,3981.0,3980.9,0.439]
[1761005090025,1.728,3981.0,3980.9,0.73537378]
[1761005090227,1.8528,3981.0,3980.9,0.73537378]
[1761005092304,14.711638,3980.8,3980.5,0.439]
[1761005092502,1.728,3980.9,3980.6,3.628]
[1761005092733,1.728,3980.9,3980.2,2.51243656]
[1761005092734,31.728,3980.7,3979.9,0.002]
[1761005092907,1.728,3980.4,3979.9,0.002]
[1761005093109,9.72623,3980.1,3979.9,0.002]
[1761005094005,34.44766984,3980.0,3979.9,0.002]
[1761005094322,30.04022968,3980.0,3979.9,0.002]
[1761005094628,30.08402581,3980.0,3979.9,0.002]
[1761005095022,35.23423279,3980.0,3979.9,0.002]
[1761005095619,33.32934479,3980.0,3979.9,0.002]
[1761005095814,29.69559479,3980.0,3979.9,0.002]
[1761005096018,29.70060979,3980.0,3979.9,0.002]
[1761005097011,36.92183979,3980.0,3979.9,0.002]
[1761005097549,36.87804366,3980.0,3979.9,0.002]
[1761005097932,36.92184114,3980.0,3979.9,0.002]
[1761005098120,36.87804366,3980.0,3979.9,0.002]
[1761005098321,31.728,3980.0,3979.9,0.002]
[1761005098539,28.02248,3980.0,3979.9,0.002]
[1761005098851,26.29448,3980.0,3979.9,0.002]
[1761005099150,29.957499,3980.3,3979.9,0.002]
[1761005099353,29.957499,3980.3,3979.9,0.441]
[1761005099524,28.348688,3980.3,3979.9,0.441]
[1761005100021,3.192,3980.4,3979.9,0.441]
[1761005100223,30.0,3980.3,3979.9,0.441]
[1761005100753,27.091911,3980.2,3979.9,0.441]
[1761005101153,17.95195,3980.2,3979.9,0.441]
[1761005101334,0.04379252,3980.3,3980.1,0.2141]
[1761005101535,3.44850252,3980.3,3980.2,0.428]
[1761005102254,17.82399552,3980.3,3980.2,0.428]
[1761005102431,17.82399552,3980.3,3980.1,0.2141]
[1761005102633,12.613376,3980.2,3980.1,0.2141]
[1761005102829,6.903194,3980.2,3980.1,0.2141]
[1761005103019,2.330186,3980.2,3980.1,0.6421]
[1761005103225,0.16939252,3980.3,3980.1,0.6421]
[1761005103425,0.16939252,3980.3,3980.2,0.428]
[1761005106321,0.1256,3980.3,3980.2,0.428]
[1761005106846,8.808472,3980.2,3979.9,0.002]
[1761005107044,1.728,3980.3,3979.9,0.002]
[1761005107250,14.901528,3980.2,3979.9,0.002]
[1761005107449,11.490151,3980.2,3979.9,0.002]
[1761005107762,11.127473,3980.2,3979.9,0.002]
[1761005108058,5.749777,3980.1,3979.9,0.43]
[1761005108224,1.728,3980.2,3979.9,0.43]
[1761005108423,8.325445,3980.2,3980.1,0.002]
[1761005108866,7.801792,3980.2,3980.1,0.002]
[1761005109163,9.219928,3980.2,3980.1,0.002]
[1761005109459,7.468809,3980.2,3980.1,0.002]
[1761005110030,1.728,3980.5,3980.1,0.002]
[1761005110232,1.728,3980.3,3980.1,0.002]
[1761005110430,10.582099,3980.2,3980.1,0.002]
[1761005111036,7.526609,3980.2,3980.1,0.002]
[1761005112058,17.952991,3980.2,3980.1,0.002]
[1761005113175,22.001446,3980.2,3980.1,0.002]
[1761005114064,1.77179118,3980.2,3980.1,0.002]
[1761005114253,22.04523718,3980.2,3980.1,0.002]
[1761005115967,8.95294818,3980.2,3980.1,0.002]
[1761005116138,3.80736618,3980.2,3980.1,0.6754]
[1761005116462,1.77179118,3980.2,3980.1,0.6754]
[1761005116668,3.79475618,3980.2,3980.1,0.6754]
[1761005116968,1.77179118,3980.2,3980.1,0.6754]
[1761005117370,4.27906618,3980.2,3980.1,0.6754]
[1761005117670,1.77179118,3980.2,3980.1,0.6754]
[1761005117868,1.77179118,3980.2,3980.1,3.50670759]
[1761005118182,0.1256,3980.7,3980.6,2.51218409]
[1761005118348,4.629889,3980.8,3980.6,2.51218409]
[1761005118552,5.500889,3980.8,3980.7,0.4446]
[1761005118760,5.500889,3980.8,3980.7,2.95672098]
[1761005120262,5.500889,3980.8,3980.7,3.50361762]
[1761005120263,3.772889,3980.8,3980.7,3.50361762]
[1761005121075,0.1256,3980.9,3980.7,3.50361762]
[1761005121287,0.1256,3980.9,3980.8,0.4446]
[1761005121774,6.773736,3980.9,3980.8,0.4446]
[1761005121962,4.893736,3980.9,3980.8,0.4446]
[1761005122165,1.8536,3980.9,3980.8,2.95665787]
[1761005122349,1.8536,3980.9,3980.8,3.32011787]
[1761005124503,1.8536,3980.9,3980.8,0.80806]
[1761005124702,1.8536,3980.9,3980.8,2.95665787]
[1761005126305,1.8536,3980.9,3980.6,5.70217471]
[1761005126306,1.728,3980.8,3980.6,3.19]
[1761005126600,0.1256,3980.9,3980.7,2.95671784]
[1761005126983,0.1256,3980.9,3980.8,0.4446]
[1761005127186,0.1256,3980.9,3980.8,2.95665787]
[1761005127581,0.1256,3980.9,3980.8,3.82253873]
[1761005128420,4.976946,3980.8,3980.1,0.54960791]
[1761005128612,12.42205,3980.7,3980.2,3.188]
[1761005128819,8.883812,3980.5,3980.2,5.70043089]
[1761005129012,8.883812,3980.5,3980.2,3.188]
[1761005129188,1.728,3980.7,3980.2,5.70042369]
[1761005129387,0.001,3980.9,3980.2,5.70042369]
[1761005129623,1.728,3980.5,3980.2,5.70042369]
[1761005129819,0.001,3980.9,3980.2,5.70042369]
[1761005129992,1.728,3980.5,3980.2,5.70042369]
[1761005130191,0.001,3980.9,3980.2,5.70042369]
[1761005130416,0.001,3980.9,3980.3,3.188]
[1761005130417,1.728,3980.5,3980.3,3.188]
[1761005130718,1.728,3980.7,3980.3,5.70036481]
[1761005130889,0.001,3980.9,3980.3,5.70036481]
[1761005131089,1.728,3980.5,3980.3,5.70036481]
[1761005131298,0.001,3980.9,3980.3,5.70036481]
[1761005131506,1.728,3980.5,3980.3,5.70036481]
[1761005131719,0.001,3980.9,3980.3,6.16206481]
[1761005131935,1.728,3980.5,3980.3,6.16206481]
[1761005132218,1.728,3980.7,3980.3,3.6497]
[1761005132522,0.001,3980.9,3980.4,2.51230602]
[1761005132890,1.728,3980.5,3980.4,2.51230602]
[1761005133091,0.001,3980.9,3980.4,2.51230602]
[1761005133293,1.728,3980.5,3980.4,2.51230602]
[1761005133516,1.728,3980.7,3980.4,2.51230602]
[1761005133704,1.728,3980.5,3980.4,2.51230602]
[1761005133913,8.347333,3980.6,3980.4,2.51230602]
[1761005133914,1.728,3980.7,3980.4,2.51230602]
[1761005134220,0.001,3980.9,3980.4,2.51230602]
[1761005134821,0.001,3980.9,3980.5,2.97394619]
[1761005135429,0.001,3980.9,3980.5,0.4617]
[1761005135829,0.001,3980.9,3980.5,2.97394111]
[1761005136526,0.001,3980.9,3980.5,0.4617]
[1761005136839,0.001,3980.9,3980.5,2.97394076]
[1761005137727,0.001,3980.9,3980.6,0.01263314]
[1761005137953,0.001,3980.9,3980.6,2.97386235]
[1761005138232,0.001,3980.9,3980.7,3.186]
[1761005139031,0.001,3980.9,3980.7,5.69811594]
[1761005139335,0.001,3980.9,3980.7,6.15981594]
[1761005141102,0.001,3980.9,3980.8,0.4617]
[1761005141301,0.001,3980.9,3980.8,2.97375787]
[1761005141945,0.001,3980.9,3980.8,2.98638848]
[1761005143110,0.001,3980.9,3980.8,2.97375787]
[1761005143307,0.001,3980.9,3980.8,0.4617]
[1761005143541,0.001,3980.9,3980.7,5.6981011]
[1761005143721,0.001,3980.9,3980.7,3.6477]
[1761005144234,0.001,3980.9,3980.7,6.15981144]
[1761005144613,0.001,3980.9,3980.8,2.51205787]
[1761005144822,0.001,3980.9,3980.7,6.15979975]
[1761005146026,0.001,3980.9,3980.8,3.183]
[1761005147650,0.001,3980.9,3980.8,6.15675787]
[1761005149335,0.001,3980.9,3980.8,5.69505787]
[1761005149748,0.001,3980.9,3980.8,3.183]
[1761005154028,0.1791,3980.9,3980.8,3.183]
[1761005154230,0.001,3980.9,3980.8,3.183]
[1761005154533,0.001,3980.9,3980.8,3.18]
[1761005154741,0.1791,3980.9,3980.8,3.18]
[1761005155057,0.1791,3980.9,3980.7,3.18]
[1761005155283,0.1256,3980.8,3980.7,3.18]
[1761005158748,0.3037,3980.8,3980.1,0.1276]
[1761005158950,29.43161556,3980.2,3980.1,0.002]
[1761005159153,34.74750594,3979.9,3978.0,1.2497]
[1761005159379,38.18160594,3979.9,3978.0,1.2497]
[1761005159661,38.18160594,3979.9,3976.3,0.22288321]
[1761005159662,31.728,3979.2,3976.3,0.22288321]
[1761005159969,11.73389684,3977.6,3976.4,0.4617]
[1761005160261,15.32809912,3977.6,3975.8,0.4617]
[1761005160457,16.25342796,3977.6,3975.8,0.4617]
[1761005160670,16.64822432,3977.6,3975.8,0.4617]
[1761005160867,9.83159081,3977.6,3975.8,2.97690758]
[1761005161045,37.06389161,3977.6,3976.2,0.6993]
[1761005161388,36.23799227,3977.6,3976.2,0.6993]
[1761005161565,38.62705969,3977.6,3976.2,0.6993]
[1761005161781,36.11298085,3977.6,3976.2,0.6993]
[1761005162125,10.37830696,3977.6,3976.3,0.01268654]
[1761005162368,10.37830696,3977.6,3976.5,2.98336649]
[1761005162560,10.37830696,3977.6,3976.5,0.4686]
[1761005162864,12.8923858,3977.6,3976.5,0.4686]
[1761005163160,16.8570748,3977.6,3976.5,0.4686]
[1761005163362,16.8570748,3977.6,3976.2,0.6993]
[1761005163526,16.8570748,3977.6,3976.2,3.21425979]
[1761005164065,31.6166388,3977.6,3976.3,2.51489255]
[1761005164266,29.10255996,3977.6,3976.4,2.5148307]
[1761005164566,5.88629996,3977.6,3976.4,0.01268623]
[1761005164733,4.98781911,3977.6,3977.1,0.2307]
[1761005164935,4.944,3977.6,3977.1,0.2307]
[1761005165339,4.944,3977.6,3977.5,0.00309682]
[1761005170786,4.98781577,3977.6,3977.5,0.00309682]
[1761005172142,3.25981577,3977.6,3977.5,2.98583886]
[1761005172350,0.04381577,3977.6,3977.5,3.53711384]
[1761005172569,3.212,3978.2,3977.5,1.0229718]
[1761005172782,0.1256,3977.9,3977.6,0.4686]
[1761005173289,0.1256,3977.9,3977.6,2.98266768]
[1761005173490,0.1256,3977.9,3977.7,0.4686]
[1761005173672,0.1256,3977.9,3977.7,2.98260644]
[1761005174192,0.1256,3977.9,3977.8,0.4686]
[1761005176959,0.1256,3977.9,3977.5,0.00309682]
[1761005177159,0.1256,3977.9,3977.6,2.9692243]
[1761005177479,0.1256,3977.9,3977.6,3.83921038]
[1761005177787,0.1256,3977.9,3977.7,2.9692145]
[1761005177994,1.8974,3977.9,3977.5,0.00309682]
[1761005178159,3.955595,3977.6,3977.5,0.00309682]
[1761005178363,6.2790045,3977.6,3977.5,0.00309682]
[1761005178586,2.3234095,3977.6,3977.5,0.00309682]
[1761005178768,3.962454,3977.6,3977.5,0.00309682]
[1761005178977,1.728,3977.6,3977.5,0.00309682]
[1761005179666,4.845292,3977.6,3977.5,0.00309682]
[1761005179876,1.728,3977.6,3977.5,0.00309682]
[1761005183563,0.04381425,3977.7,3977.6,2.51407884]
[1761005183818,3.209,3978.5,3977.9,2.51383978]
[1761005183974,1.728,3978.4,3977.7,2.96919794]
[1761005184296,2.64265581,3979.2,3978.4,0.2253]
[1761005184297,0.001,3979.2,3978.4,0.2253]
[1761005184463,3.209,3979.1,3978.5,2.9686673]
[1761005184658,3.209,3979.1,3978.5,0.4552]
[1761005184659,1.728,3979.0,3978.5,0.4552]
[1761005184980,1.728,3979.0,3978.6,2.51339924]
[1761005185292,1.728,3979.0,3978.5,0.4552]
[1761005185897,1.728,3979.0,3978.4,0.2253]
[1761005187096,1.728,3979.0,3978.4,2.7388688]
[1761005188074,0.1256,3978.7,3978.4,0.2253]
[1761005188396,7.21858,3978.2,3977.7,3.207]
[1761005188596,0.1256,3978.2,3977.7,3.207]
[1761005188804,0.1256,3978.0,3977.9,2.51388923]
[1761005188971,0.1256,3978.3,3978.1,2.51374641]
[1761005189498,0.1256,3978.3,3977.8,2.51395243]
[1761005189666,0.1256,3978.3,3977.9,0.4552]
[1761005190295,0.1256,3978.3,3977.9,2.96906432]
[1761005190790,0.1256,3978.3,3978.0,0.4691]
[1761005191290,0.1256,3978.3,3978.0,2.98291494]
[1761005191883,0.1256,3978.3,3978.1,0.4691]
[1761005192279,0.1256,3978.3,3977.8,3.6751]
[1761005192484,0.1256,3978.3,3977.9,6.18798824]
[1761005193704,0.1256,3978.3,3977.9,5.71888824]
[1761005193873,0.17562654,3978.6,3977.8,3.205]
[1761005194072,0.1256,3978.0,3977.8,3.205]
[1761005194275,0.1256,3978.0,3977.8,5.71893587]
[1761005196102,0.1256,3978.0,3977.9,2.51388923]
[1761005196478,0.1256,3978.0,3977.8,3.6741]
[1761005197400,0.1256,3978.0,3977.8,6.18799845]
[1761005197907,0.1256,3978.0,3977.9,2.51388923]
[1761005199099,0.1256,3978.0,3977.9,2.98298923]
[1761005201807,0.1256,3978.0,3977.8,3.205]
[1761005201992,0.1256,3978.0,3977.8,6.18799545]
[1761005202404,0.1256,3978.0,3977.9,2.51388923]
[1761005204096,0.1256,3978.0,3977.9,2.98298923]
[1761005206128,0.1256,3978.0,3977.9,2.99566563]
[1761005206452,0.04380889,3978.2,3978.1,2.51376285]
[1761005206909,0.04380889,3978.2,3978.1,6.18186285]
[1761005207126,0.1256,3978.5,3978.4,2.51356032]
[1761005207723,0.1256,3978.5,3978.2,0.4691]
[1761005207917,0.1256,3978.5,3978.2,2.98278023]
[1761005210031,0.1256,3978.5,3978.2,0.4691]
[1761005210253,0.1256,3978.5,3978.4,2.51357329]
[1761005210637,0.1256,3978.5,3978.4,2.98267329]
[1761005210840,1.728,3978.6,3977.8,2.51393077]
[1761005211038,15.441357,3978.5,3977.8,5.71093077]
[1761005211240,9.187546,3978.5,3977.9,2.51388541]
[1761005211442,6.821353,3978.5,3977.9,2.51388541]
[1761005211651,2.035313,3978.5,3977.9,2.51388541]
[1761005212028,0.04380772,3978.4,3977.9,2.51388541]
[1761005213521,11.164233,3978.3,3977.8,3.197]
[1761005213745,1.728,3978.2,3977.8,3.196]
[1761005214157,1.8284,3978.2,3977.8,3.196]
[1761005214333,1.8284,3978.2,3977.5,0.47219682]
[1761005214334,0.1004,3978.1,3977.5,0.00309682]
[1761005215261,2.51407884,3977.6,3977.5,0.00309682]
[1761005215554,36.25615514,3977.6,3977.5,0.00309682]
[1761005215757,34.30236614,3977.6,3977.5,0.00309682]
[1761005216322,38.3953552,3977.6,3977.5,0.00309682]
[1761005216556,40.85713605,3977.6,3977.5,0.00309682]
[1761005217031,31.82792805,3977.6,3977.5,0.00309682]
[1761005217234,7.18338285,3977.6,3977.5,0.00309682]
[1761005217440,7.973225,3977.6,3977.5,0.00309682]
[1761005218368,4.943,3977.6,3977.5,0.00309682]
[1761005218573,13.450314,3977.6,3977.5,0.00309682]
[1761005219337,13.7133,3977.6,3977.5,0.00309682]
[1761005219956,13.75711611,3977.6,3977.5,0.00309682]
[1761005220135,4.98681611,3977.6,3977.5,0.00309682]
[1761005220342,7.07670611,3977.6,3977.5,0.00309682]
[1761005220536,4.98681611,3977.6,3977.5,0.00309682]
[1761005220937,3.25881611,3977.6,3977.5,0.00309682]
[1761005221138,2.78529166,3978.7,3977.5,0.45269682]
[1761005221383,0.1256,3977.8,3977.5,0.00309682]
[1761005222841,7.397722,3977.6,3977.5,0.00309682]
[1761005223076,9.125722,3977.6,3977.5,0.00309682]
[1761005223240,9.226822,3977.6,3977.5,0.00309682]
[1761005223443,14.95390084,3977.6,3977.5,0.00309682]
[1761005223664,17.08491846,3977.6,3977.5,0.00309682]
[1761005223839,9.3379001,3977.6,3977.5,0.00309682]
[1761005224047,26.5135531,3977.6,3977.5,0.00309682]
[1761005224342,6.82382126,3977.6,3977.5,0.00309682]
[1761005224569,4.941,3977.6,3977.5,0.00309682]
[1761005224772,6.941346,3977.6,3977.5,0.00309682]
[1761005224976,10.678112,3977.6,3977.5,0.00309682]
[1761005225671,10.393324,3977.6,3977.5,0.00309682]
[1761005226071,14.12353084,3977.6,3977.5,0.00309682]
[1761005226267,15.54026554,3977.6,3977.5,0.00309682]
[1761005226862,15.8895619,3977.6,3977.5,0.00309682]
[1761005227065,39.8290899,3977.6,3977.5,0.00309682]
[1761005227259,38.97291354,3977.6,3977.5,0.00309682]
[1761005227465,15.46878154,3977.6,3977.5,0.00309682]
[1761005228061,20.22106754,3977.6,3977.5,0.002]
[1761005228902,20.72794754,3977.6,3977.5,0.002]
[1761005229093,26.11471054,3977.6,3977.5,0.002]
[1761005229762,26.15853084,3977.6,3977.5,0.002]
[1761005229963,29.79200384,3977.6,3977.5,0.002]
[1761005230188,29.47578084,3977.6,3977.5,0.002]
[1761005230581,28.96890084,3977.6,3977.5,0.002]
[1761005230905,29.47578084,3977.6,3977.5,0.002]
[1761005231064,39.52361384,3977.6,3977.5,0.002]
[1761005231867,34.26988784,3977.6,3977.5,0.002]
[1761005232073,33.74008584,3977.6,3977.5,0.002]
[1761005232396,34.24696584,3977.6,3977.5,0.002]
[1761005232964,9.52361384,3977.6,3977.5,0.002]
[1761005233167,39.52361384,3977.6,3977.5,0.002]
[1761005234193,39.01673384,3977.6,3977.5,0.002]
[1761005234389,39.52361384,3977.6,3977.5,0.002]
[1761005235784,37.36051484,3977.6,3977.5,0.002]
[1761005236182,39.52361384,3977.6,3977.5,0.002]
[1761005236376,20.06967454,3977.6,3977.5,0.002]
[1761005236577,20.17077454,3977.6,3977.5,0.002]
[1761005237094,38.97291354,3977.6,3977.5,0.002]
[1761005238793,37.74162354,3977.6,3977.5,0.002]
[1761005239168,38.97291354,3977.6,3977.5,0.002]
[1761005239368,29.62504603,3977.6,3977.5,0.002]
[1761005240297,39.01673503,3977.6,3977.5,0.002]
[1761005240871,24.22776103,3977.6,3977.5,0.002]
[1761005241070,18.74086203,3977.6,3977.5,0.002]
[1761005241306,22.09222701,3977.6,3977.5,0.002]
[1761005241492,19.77549701,3977.6,3977.5,0.002]
[1761005241800,18.53295701,3977.6,3977.5,0.002]
[1761005242292,21.43852303,3977.6,3977.5,0.002]
[1761005242489,19.67042703,3977.6,3977.5,0.002]
[1761005242703,18.26542903,3977.6,3977.5,0.002]
[1761005243215,16.84869433,3977.6,3977.5,0.002]
[1761005243393,7.50090033,3977.6,3977.5,0.002]
[1761005243572,17.08143333,3977.6,3977.5,0.002]
[1761005244491,20.38819333,3977.6,3977.5,0.002]
[1761005244673,9.69413749,3977.6,3977.5,0.002]
[1761005245002,12.20821633,3977.6,3977.5,0.002]
[1761005245407,22.77708533,3977.6,3977.5,0.002]
[1761005245608,22.47443633,3977.6,3977.5,0.002]
[1761005246374,26.57163233,3977.6,3977.5,0.002]
[1761005247276,23.78251733,3977.6,3977.5,0.002]
[1761005247477,7.60200033,3977.6,3977.5,0.002]
[1761005247711,23.78251733,3977.6,3977.5,0.002]
[1761005248507,22.52947833,3977.6,3977.5,0.002]
[1761005248697,27.41491533,3977.6,3977.5,0.002]
[1761005248897,22.72983533,3977.6,3977.5,0.002]
[1761005249097,22.21881233,3977.6,3977.5,0.002]
[1761005249705,23.11141233,3977.6,3977.5,0.002]
[1761005250193,23.01031233,3977.6,3977.5,0.002]
[1761005250391,21.21115333,3977.6,3977.5,0.002]
[1761005250595,19.36456033,3977.6,3977.5,0.002]
[1761005250810,19.86247733,3977.6,3977.5,0.002]
[1761005251407,21.42988865,3977.6,3977.5,0.002]
[1761005251613,22.21490395,3977.6,3977.5,0.002]
[1761005251789,9.95442695,3977.6,3977.5,0.002]
[1761005252109,36.43875395,3977.6,3977.5,0.002]
[1761005252304,36.83313603,3977.6,3977.5,0.002]
[1761005252889,40.01419009,3977.6,3977.5,0.002]
[1761005253212,29.31039909,3977.6,3977.5,0.002]
[1761005253384,26.90369809,3977.6,3977.5,0.002]
[1761005253779,34.46402673,3977.6,3977.5,0.002]
[1761005254176,28.63384789,3977.6,3977.5,0.002]
[1761005254409,9.60481957,3977.6,3977.5,0.002]
[1761005254805,13.99356157,3977.6,3977.5,0.002]
[1761005254990,13.15141457,3977.6,3977.5,0.002]
[1761005255191,15.66549341,3977.6,3977.5,0.002]
[1761005255882,7.88828241,3977.6,3977.5,0.002]
[1761005256100,24.98228541,3977.6,3977.5,0.002]
[1761005257011,27.38228541,3977.6,3977.5,0.002]
[1761005258017,28.19066241,3977.6,3977.5,0.002]
[1761005258186,28.63842852,3977.6,3977.5,0.002]
[1761005258389,28.32832852,3977.6,3977.5,0.002]
[1761005258588,28.77872488,3977.6,3977.5,0.002]
[1761005259029,36.31605288,3977.6,3977.5,0.002]
[1761005259402,33.62712288,3977.6,3977.5,0.002]
[1761005259791,34.06284182,3977.6,3977.5,0.002]
[1761005260020,39.12106382,3977.6,3977.5,0.002]
[1761005260320,38.25066382,3977.6,3977.5,0.002]
[1761005260519,36.44669782,3977.6,3977.5,0.002]
[1761005261019,37.36012582,3977.6,3977.5,0.002]
[1761005261225,37.02302225,3977.6,3977.5,0.002]
[1761005261720,36.67372589,3977.6,3977.5,0.002]
[1761005262018,38.84044389,3977.6,3977.5,0.002]
[1761005263820,25.02019995,3977.6,3977.5,0.002]
[1761005264021,8.50582495,3977.6,3977.5,0.002]
[1761005264214,38.54964629,3977.6,3977.5,0.002]
[1761005264530,38.94403472,3977.6,3977.5,0.002]
[1761005264699,38.54964629,3977.6,3977.5,0.002]
[1761005267320,38.44854629,3977.6,3977.5,0.002]
[1761005267510,38.84294314,3977.6,3977.5,0.002]
[1761005268001,32.48759314,3977.6,3977.5,0.002]
[1761005268200,34.75712014,3977.6,3977.5,0.002]
[1761005268428,34.7132988,3977.6,3977.5,0.002]
[1761005269237,8.2872418,3977.6,3977.5,0.002]
[1761005269523,38.2872418,3977.6,3977.5,0.002]
[1761005270126,24.7227028,3977.6,3977.5,0.002]
[1761005270829,22.61291695,3977.6,3977.5,0.002]
[1761005271031,22.65674506,3977.6,3977.5,0.002]
[1761005271230,7.93467306,3977.6,3977.5,0.002]
[1761005271419,25.56798606,3977.6,3977.5,0.002]
[1761005271621,24.03481006,3977.6,3977.5,0.002]
[1761005272215,27.11542806,3977.6,3977.5,0.002]
[1761005272416,26.52942806,3977.6,3977.5,0.002]
[1761005272632,26.29459106,3977.6,3977.5,0.002]
[1761005273107,25.07013906,3977.6,3977.5,0.002]
[1761005273314,22.67481806,3977.6,3977.5,0.002]
[1761005274437,27.46423206,3977.6,3977.5,0.002]
[1761005275334,27.91724706,3977.6,3977.5,0.002]
[1761005276206,25.24770806,3977.6,3977.5,0.002]
[1761005276706,23.05108306,3977.6,3977.5,0.002]
[1761005276905,23.05108306,3977.6,3977.5,0.4548]
[1761005277215,19.74695306,3977.6,3977.5,0.4548]
[1761005277407,16.54595306,3977.6,3977.5,0.4548]
[1761005277608,19.74395306,3977.6,3977.5,0.4548]
[1761005278319,17.22403122,3977.6,3977.5,0.002]
[1761005278634,19.73811006,3977.6,3977.5,0.002]
[1761005279417,7.93167306,3977.6,3977.5,0.002]
[1761005279617,21.25516706,3977.6,3977.5,0.002]
[1761005280432,25.21895606,3977.6,3977.5,0.002]
[1761005280636,21.98506906,3977.6,3977.5,0.002]
[1761005280833,19.47099022,3977.6,3977.5,0.002]
[1761005281034,10.42716811,3977.6,3977.5,0.473]
[1761005281628,4.96782811,3977.6,3977.5,0.473]
[1761005281828,5.103769,3978.5,3977.5,0.473]
[1761005282041,0.1256,3977.7,3977.5,2.98713082]
[1761005282346,0.1256,3977.7,3977.6,3.28390253]
[1761005282724,1.744,3978.0,3977.8,2.51391231]
[1761005282919,0.1256,3978.0,3977.9,0.01267703]
[1761005283131,0.1256,3978.0,3977.9,2.98488923]
[1761005283559,3.196,3978.3,3978.0,2.51378047]
[1761005283760,3.3216,3978.3,3978.0,3.53465331]
[1761005284067,1.728,3978.2,3978.1,2.98476057]
[1761005284240,1.728,3978.2,3978.1,0.471]
[1761005285555,4.024863,3978.2,3978.1,0.471]
[1761005290080,4.024863,3978.2,3977.6,2.63967499]
[1761005290081,4.024863,3978.2,3977.6,0.1256]
[1761005290386,0.1256,3977.8,3977.7,0.471]
[1761005290551,2.41187539,3978.2,3977.5,0.002]
[1761005290552,4.921,3978.0,3977.5,0.473]
[1761005290875,5.513894,3977.8,3977.5,0.473]
[1761005291076,1.75942361,3977.9,3977.5,0.473]
[1761005291077,0.1256,3977.7,3977.5,0.473]
[1761005291280,0.1256,3977.7,3977.6,2.51407075]
[1761005291588,0.1256,3977.7,3977.6,3.06430525]